bitfinex-derivatives/quotes_ETHF0:USTF0_20241018
["timestamp","ask_amount","ask_price","bid_price","bid_amount"]
[1729218050639,0.37979,2633.7,2633.5,0.3798]
[1729218050838,41.17978,2633.8,2633.6,0.3798]
[1729218051041,40.8,2633.8,2633.5,0.37981]
[1729218051240,0.37979,2633.7,2633.5,0.37981]
[1729218051538,41.17978,2633.8,2633.6,0.37979]
[1729218051744,3.58756,2633.9,2633.7,0.37978]
[1729218052145,44.38756,2633.9,2633.7,0.37978]
[1729218052945,40.8,2633.9,2633.3,6.1778]
[1729218053246,0.3954,2634.1,2633.5,2.97]
[1729218053543,0.3954,2634.1,2634.0,0.37974]
[1729218053943,0.77514,2634.1,2633.9,0.37975]
[1729218054448,0.37975,2634.0,2633.8,0.37977]
[1729218054647,0.37974,2634.0,2633.6,1.2312]
[1729218054834,0.37974,2634.0,2633.8,0.37976]
[1729218055446,0.3954,2634.1,2633.8,0.37976]
[1729218055749,0.37975,2634.0,2633.8,0.37976]
[1729218056350,0.37975,2634.0,2633.7,0.37978]
[1729218056645,0.37978,2633.8,2633.6,1.18279]
[1729218056845,3.58756,2633.9,2633.6,1.18279]
[1729218057040,3.2078,2633.9,2633.8,0.37977]
[1729218057243,0.77514,2634.1,2633.9,0.37975]
[1729218057442,0.77514,2634.1,2633.6,0.803]
[1729218057645,0.3954,2634.1,2633.6,0.803]
[1729218057836,0.3954,2634.1,2633.9,0.37975]
[1729218058245,0.3954,2634.1,2633.6,0.803]
[1729218058439,44.0078,2634.2,2634.0,0.37973]
[1729218058639,44.0078,2634.2,2633.6,0.803]
[1729218058846,44.0078,2634.2,2634.0,0.37973]
[1729218059858,44.38752,2634.2,2634.0,0.37974]
[1729218060152,44.38752,2634.2,2634.1,0.37973]
[1729218060350,44.0078,2634.2,2634.1,0.37973]
[1729218060645,0.37976,2633.9,2633.6,0.803]
[1729218060848,47.92712,2634.2,2633.6,0.803]
[1729218061143,0.4207,2634.1,2633.6,0.803]
[1729218061343,0.4207,2634.1,2633.7,0.37977]
[1729218061549,3.3907,2634.1,2633.6,1.18279]
[1729218061742,0.37976,2633.9,2633.6,1.18279]
[1729218061943,0.37976,2633.9,2633.6,0.803]
[1729218062146,0.3992,2634.0,2633.6,0.803]
[1729218062838,0.77894,2634.0,2633.8,0.37977]
[1729218063146,0.37973,2634.1,2633.9,0.37976]
[1729218063345,44.38751,2634.2,2634.0,0.37973]
[1729218063547,44.38751,2634.2,2633.6,0.803]
[1729218063548,2.97,2634.1,2633.6,0.803]
[1729218063745,0.37976,2633.9,2633.6,1.18279]
[1729218064148,2.97,2634.1,2633.7,0.37978]
[1729218064544,2.97,2634.1,2633.6,0.803]
[1729218064750,0.37978,2633.8,2633.6,0.803]
[1729218064945,0.37978,2633.8,2633.6,1.1828]
[1729218065147,0.78308,2633.8,2633.6,1.1828]
[1729218065347,0.4033,2633.8,2633.3,3.98373]
[1729218065547,4.28815346,2633.8,2633.3,3.98373]
[1729218065844,4.28815346,2633.8,2633.5,0.37981]
[1729218065845,0.37978,2633.7,2633.5,0.37981]
[1729218066050,4.28815346,2633.8,2633.5,0.37981]
[1729218066244,4.28815346,2633.8,2633.7,0.37978]
[1729218066548,3.58756,2633.9,2633.7,0.37978]
[1729218066549,3.46405346,2633.9,2633.7,0.37978]
[1729218066848,3.46405346,2633.9,2633.3,7.52349]
[1729218067347,3.46405346,2633.9,2633.8,0.37977]
[1729218067754,3.84381346,2633.9,2633.7,0.37978]
[1729218068053,3.46405346,2633.9,2633.8,0.37977]
[1729218068243,3.46405346,2633.9,2633.8,0.37976]
[1729218068440,3.46405346,2633.9,2633.8,0.37977]
[1729218068744,3.46405346,2634.0,2633.9,0.37976]
[1729218070147,3.84379346,2634.0,2633.8,0.37976]
[1729218070356,3.46405346,2634.0,2633.5,0.94954]
[1729218070650,4.33864824,2634.1,2633.9,0.37976]
[1729218070840,3.47864049,2634.0,2633.9,0.37976]
[1729218071554,3.47864049,2634.0,2633.3,3.6039]
[1729218071751,3.47864049,2634.0,2633.8,0.37976]
[1729218071752,3.85839049,2634.0,2633.8,0.37976]
[1729218071959,3.85840049,2633.9,2633.7,0.37978]
[1729218072249,3.47864049,2633.9,2633.3,3.6039]
[1729218072439,7.49484049,2633.8,2633.3,3.2078]
[1729218072646,0.37983,2633.4,2633.3,3.2078]
[1729218072847,0.37986,2633.2,2632.9,0.37989]
[1729218073049,0.37985,2633.3,2633.0,0.37988]
[1729218073253,0.37983,2633.4,2633.2,0.37985]
[1729218073560,3.7784,2633.8,2633.0,0.37989]
[1729218073747,3.7784,2633.8,2632.9,3.2078]
[1729218074250,0.37982,2633.5,2633.2,0.37985]
[1729218074449,0.37982,2633.5,2633.3,0.37984]
[1729218074747,0.37982,2633.5,2632.9,3.2078]
[1729218074748,0.37982,2633.5,2633.2,0.37985]
[1729218075256,3.7784,2633.8,2632.9,3.2078]
[1729218075859,0.37978,2633.7,2633.4,0.37983]
[1729218076059,3.7784,2633.8,2633.5,0.37981]
[1729218076248,0.37979,2633.7,2633.5,0.37981]
[1729218076554,3.7784,2633.8,2633.1,0.8357]
[1729218076751,3.7784,2633.8,2633.2,0.37986]
[1729218076752,0.37981,2633.6,2633.2,0.37986]
[1729218076941,0.37981,2633.6,2633.5,0.37981]
[1729218077145,0.37981,2633.6,2633.3,0.4019]
[1729218077146,0.37981,2633.6,2633.4,0.37982]
[1729218078252,0.37981,2633.5,2633.4,0.37982]
[1729218078843,0.37981,2633.6,2633.4,0.37982]
[1729218079052,0.37981,2633.6,2633.5,0.37981]
[1729218079364,0.3798,2633.7,2633.5,0.37981]
[1729218079854,3.7784,2633.8,2633.5,0.37981]
[1729218080246,3.7784,2633.8,2633.5,0.3798]
[1729218080247,0.37979,2633.7,2633.5,0.3798]
[1729218080856,3.7784,2633.8,2633.5,0.3798]
[1729218081152,0.3798,2633.6,2633.5,0.3798]
[1729218081358,0.37979,2633.7,2633.5,0.3798]
[1729218081554,0.37979,2633.7,2633.3,0.4019]
[1729218081763,0.37979,2633.7,2633.6,0.37979]
[1729218082260,3.47864049,2633.8,2633.3,0.4019]
[1729218082457,0.37977,2633.8,2633.7,0.37978]
[1729218082664,3.2078,2633.9,2633.3,0.4019]
[1729218082848,0.37978,2633.8,2633.7,0.37978]
[1729218083053,3.2078,2633.9,2633.7,0.37978]
[1729218083253,3.2078,2633.9,2633.3,0.4019]
[1729218083655,6.68644049,2633.9,2633.7,0.37978]
[1729218083959,3.58757,2633.9,2633.4,0.37983]
[1729218084159,3.2078,2633.9,2633.3,0.4019]
[1729218084357,3.47864049,2633.9,2633.8,0.37977]
[1729218084562,3.47864049,2634.0,2633.4,0.94958]
[1729218084768,3.85838049,2634.0,2633.9,0.37976]
[1729218084959,3.85838049,2634.0,2633.8,0.37976]
[1729218085159,3.47864049,2633.9,2633.4,0.94958]
[1729218085466,7.43755873,2634.2,2634.1,0.37973]
[1729218085654,7.43755873,2634.2,2633.5,3.2078]
[1729218085655,6.44864049,2634.2,2633.5,3.2078]
[1729218085850,6.44864049,2634.2,2634.0,0.37974]
[1729218085851,6.82836049,2634.2,2634.0,0.37974]
[1729218086555,3.47864049,2634.2,2634.1,0.37973]
[1729218086760,3.86774049,2634.4,2633.9,0.9494]
[1729218086960,3.86774049,2634.4,2633.8,3.2078]
[1729218086961,3.47864049,2634.5,2633.8,3.6094]
[1729218087265,6.68644049,2634.6,2633.8,3.6094]
[1729218087456,47.86610049,2634.6,2634.3,0.37969]
[1729218087768,44.0078,2634.6,2633.8,3.6094]
[1729218088065,0.37968,2634.5,2634.3,0.37969]
[1729218088254,44.0078,2634.6,2633.8,3.6094]
[1729218088457,3.368,2634.5,2634.1,0.37972]
[1729218088658,0.3797,2634.3,2634.1,0.37972]
[1729218088860,0.3797,2634.3,2633.8,3.6094]
[1729218089061,0.37969,2634.4,2634.1,0.37972]
[1729218089567,4.1874,2634.5,2634.1,0.37972]
[1729218089770,0.3797,2634.4,2634.1,0.37972]
[1729218090066,4.1874,2634.5,2634.1,0.37972]
[1729218090256,0.3797,2634.3,2634.1,0.37972]
[1729218090453,4.1874,2634.5,2634.1,0.37972]
[1729218090657,0.37969,2634.4,2634.1,0.37972]
[1729218091057,1.2174,2634.5,2634.3,0.3797]
[1729218091263,0.8046,2634.5,2634.4,0.37968]
[1729218091970,0.424,2634.8,2634.2,2.97]
[1729218092162,0.8174,2634.8,2634.3,0.797]
[1729218092361,0.8174,2634.8,2634.4,0.37967]
[1729218092362,0.37965,2634.7,2634.4,0.37967]
[1729218092663,0.37965,2634.7,2634.3,1.1871]
[1729218092864,0.37965,2634.7,2634.4,0.37967]
[1729218093069,0.37965,2634.7,2634.3,1.1871]
[1729218093272,0.37965,2634.7,2634.4,0.37967]
[1729218093571,0.37965,2634.7,2634.3,1.1871]
[1729218093757,40.8,2635.0,2634.3,1.1871]
[1729218093961,1.2255,2635.1,2634.8,0.37962]
[1729218094159,1.2255,2635.1,2634.4,3.2078]
[1729218094160,3.34962,2634.9,2634.6,0.37965]
[1729218094363,3.34965,2634.7,2634.4,0.37967]
[1729218094568,0.78004,2634.8,2634.5,0.37967]
[1729218094776,0.4004,2634.8,2634.5,0.37967]
[1729218095065,0.4004,2634.8,2634.3,1.1871]
[1729218095266,0.78004,2634.8,2634.5,0.37967]
[1729218095470,0.37964,2634.7,2634.5,0.37967]
[1729218095673,0.78003,2634.8,2634.5,0.37967]
[1729218095859,0.78003,2634.8,2634.6,0.37965]
[1729218095860,0.4004,2634.8,2634.6,0.37965]
[1729218096063,0.78003,2634.8,2634.3,1.1871]
[1729218096365,0.4004,2634.8,2634.3,0.797]
[1729218096567,0.37967,2634.5,2634.3,0.77469]
[1729218096765,0.4243,2634.4,2634.3,0.77469]
[1729218097264,0.4243,2634.4,2634.1,3.2078]
[1729218097468,0.4243,2634.4,2633.6,0.94948]
[1729218097469,0.37976,2633.9,2633.8,3.6172]
[1729218097669,0.37976,2633.9,2633.8,3.2078]
[1729218097863,0.37981,2633.6,2633.3,0.3959]
[1729218098269,0.37981,2633.6,2633.3,0.77574]
[1729218098460,0.37982,2633.5,2633.2,0.4094]
[1729218098664,0.37981,2633.6,2633.2,0.78925]
[1729218098865,0.8038,2633.7,2633.2,0.4094]
[1729218099067,0.37981,2633.5,2633.2,0.4094]
[1729218099466,0.37981,2633.5,2633.2,0.78925]
[1729218099673,0.37981,2633.5,2633.2,0.4094]
[1729218099860,2.97,2633.6,2632.9,3.2078]
[1729218100062,6.1778,2633.3,2632.5,0.8154]
[1729218100375,3.75762,2633.5,2633.1,0.37987]
[1729218100567,40.8,2633.2,2633.1,0.37987]
[1729218100979,3.6092,2633.6,2633.3,0.37984]
[1729218101267,3.6092,2633.6,2633.4,0.37982]
[1729218101468,3.6092,2633.6,2633.2,0.37986]
[1729218101661,3.6092,2633.6,2633.1,0.4061]
[1729218101867,40.8,2633.8,2633.6,0.37979]
[1729218102074,40.8,2633.8,2633.5,0.3798]
[1729218102271,40.8,2633.8,2633.3,3.2078]
[1729218102272,40.8,2633.8,2633.6,0.37979]
[1729218102475,0.37976,2633.9,2633.6,0.37979]
[1729218102874,41.17976,2633.9,2633.6,0.37979]
[1729218103267,0.37976,2633.9,2633.6,0.37979]
[1729218103670,43.77,2634.0,2633.6,0.37979]
[1729218103872,43.77,2634.0,2633.3,3.2078]
[1729218104076,4.3598,2634.1,2633.3,3.2078]
[1729218104265,0.37976,2633.9,2633.6,0.37979]
[1729218104469,0.37975,2634.0,2633.7,0.37978]
[1729218104673,0.37976,2633.9,2633.6,0.37979]
[1729218105271,4.3598,2634.1,2633.7,0.37978]
[1729218105472,0.37976,2633.9,2633.7,0.37978]
[1729218105979,0.37975,2634.0,2633.7,0.37978]
[1729218106273,0.37975,2634.0,2633.8,0.37976]
[1729218108879,44.0078,2634.1,2633.5,0.832]
[1729218109071,44.0078,2634.1,2633.9,0.37975]
[1729218109072,44.38753,2634.1,2633.9,0.37975]
[1729218109270,44.38753,2634.1,2633.8,0.37976]
[1729218109271,44.0078,2634.1,2633.8,0.37976]
[1729218109481,44.38754,2634.1,2633.8,0.37976]
[1729218109676,44.38754,2634.1,2633.9,0.37975]
[1729218110081,44.0078,2634.1,2634.0,0.37974]
[1729218110277,0.37974,2634.0,2633.8,0.37976]
[1729218110581,3.2078,2634.1,2633.5,0.832]
[1729218110779,3.34975,2634.0,2633.8,0.37977]
[1729218110969,2.97,2634.0,2633.8,0.37977]
[1729218111285,3.34975,2634.0,2633.8,0.37977]
[1729218112281,3.34975,2634.0,2633.4,3.2078]
[1729218112282,2.97,2634.0,2633.4,3.2078]
[1729218112486,0.37979,2633.7,2633.5,0.37981]
[1729218112681,2.97,2634.0,2633.4,3.2078]
[1729218112875,0.37978,2633.7,2633.5,0.3798]
[1729218113071,2.97,2634.0,2633.7,0.37977]
[1729218113072,0.37975,2634.0,2633.7,0.37977]
[1729218113276,0.37976,2633.9,2633.6,0.37979]
[1729218113473,3.2078,2634.1,2633.4,3.2078]
[1729218113774,0.37976,2633.9,2633.7,0.37977]
[1729218114171,6.1778,2634.1,2633.4,3.2078]
[1729218114680,6.1778,2634.1,2633.2,0.4023]
[1729218114681,6.1778,2633.8,2633.2,0.4023]
[1729218114981,0.8417,2633.7,2633.4,0.37982]
[1729218115184,1.22149,2633.7,2633.4,0.37982]
[1729218115380,0.3798,2633.6,2633.3,0.37984]
[1729218115576,0.8417,2633.7,2633.3,0.37984]
[1729218115577,0.37982,2633.5,2633.3,0.37984]
[1729218115779,1.2605,2633.7,2633.3,0.37984]
[1729218116084,1.2605,2633.7,2633.2,0.78215]
[1729218116282,1.2605,2633.7,2633.1,0.78597]
[1729218116483,0.37984,2633.4,2633.1,0.4061]
[1729218116682,0.37982,2633.5,2633.2,0.37985]
[1729218117089,1.2605,2633.7,2633.1,0.78596]
[1729218117287,0.37984,2633.3,2633.1,0.78596]
[1729218117583,0.37983,2633.4,2633.1,0.78596]
[1729218117976,0.37983,2633.4,2633.2,0.37986]
[1729218118384,0.37983,2633.4,2633.1,0.4061]
[1729218118385,2.97,2633.6,2633.1,0.4061]
[1729218118586,0.37987,2633.1,2633.0,3.2078]
[1729218119285,0.37987,2633.1,2632.9,0.3799]
[1729218119476,0.8376,2633.2,2632.9,0.3799]
[1729218119678,1.21746,2633.2,2632.9,0.3799]
[1729218119876,1.21746,2633.2,2632.8,0.4213]
[1729218120087,1.21746,2633.2,2632.9,0.3799]
[1729218120284,1.21746,2633.2,2632.8,0.4213]
[1729218120285,0.8376,2633.2,2632.8,0.4213]
[1729218120492,0.4118,2633.2,2632.8,0.4213]
[1729218120686,3.86674049,2633.5,2632.8,3.6291]
[1729218121003,3.86674049,2633.5,2633.3,0.37984]
[1729218121004,0.76792,2633.5,2633.3,0.37984]
[1729218121385,0.76792,2633.5,2632.9,0.4077]
[1729218121386,0.3881,2633.5,2632.9,0.4077]
[1729218121574,0.3881,2633.5,2633.0,3.2078]
[1729218121780,0.37987,2633.1,2632.9,0.78759]
[1729218121991,0.37987,2633.1,2632.8,0.4213]
[1729218122291,0.37987,2633.1,2632.8,0.80121]
[1729218122487,0.37986,2633.2,2632.9,0.37989]
[1729218122686,0.37986,2633.2,2633.0,0.37988]
[1729218122985,0.37986,2633.2,2632.9,0.37989]
[1729218123288,0.37986,2633.2,2632.7,0.3924]
[1729218123289,2.97,2633.0,2632.6,0.37994]
[1729218123495,0.94961,2633.3,2632.2,0.37999]
[1729218123496,0.37997,2632.5,2632.2,0.37999]
[1729218123687,43.77,2632.7,2632.5,0.37995]
[1729218124081,44.14994,2632.7,2632.4,0.37997]
[1729218124286,43.77,2632.7,2632.2,0.3912]
[1729218124490,43.77,2632.7,2632.5,0.37995]
[1729218125581,40.8,2632.7,2632.2,0.3912]
[1729218125778,40.8,2632.7,2632.5,0.37995]
[1729218125985,41.17993,2632.7,2632.4,0.37996]
[1729218126179,40.8,2632.7,2632.6,0.37994]
[1729218126690,3.97461,2632.9,2632.6,0.37994]
[1729218126890,3.97461,2632.9,2632.7,0.4087]
[1729218127282,3.2078,2632.9,2632.8,0.37991]
[1729218127480,0.79888,2633.1,2633.0,0.37989]
[1729218127481,0.419,2633.1,2633.0,0.37989]
[1729218127683,0.419,2633.1,2632.8,0.4129]
[1729218127897,0.37989,2633.0,2632.7,0.4087]
[1729218128085,0.37989,2633.0,2632.7,0.78862]
[1729218128285,0.811,2633.1,2632.7,0.4087]
[1729218128590,0.37995,2632.6,2632.2,0.38]
[1729218128783,0.3992,2632.5,2632.2,0.4087]
[1729218128989,0.3992,2632.5,2632.4,0.37997]
[1729218129290,0.3992,2632.5,2632.3,0.37998]
[1729218129485,0.3992,2632.5,2632.2,0.4087]
[1729218129692,0.3992,2632.5,2632.4,0.37997]
[1729218129988,0.387,2632.8,2632.6,0.37993]
[1729218130190,0.4,2632.8,2632.7,0.37993]
[1729218130386,3.2078,2632.9,2632.8,0.37991]
[1729218130999,3.2078,2632.9,2632.7,0.37992]
[1729218132091,3.2078,2632.9,2632.3,3.2078]
[1729218132299,3.2078,2632.9,2632.8,0.37991]
[1729218133395,3.2078,2632.9,2632.3,4.15775]
[1729218133696,0.37997,2632.4,2632.2,0.4087]
[1729218134084,3.34997,2632.4,2632.2,0.7887]
[1729218134289,2.97,2632.4,2632.2,0.4087]
[1729218134492,2.97,2632.4,2632.3,0.37999]
[1729218135095,43.77,2632.7,2632.2,0.4087]
[1729218135307,0.37994,2632.6,2632.3,0.37999]
[1729218135593,0.37994,2632.6,2632.2,0.4087]
[1729218135793,43.77,2632.7,2632.3,0.37999]
[1729218135989,0.37995,2632.6,2632.4,0.37997]
[1729218136392,0.37995,2632.6,2632.3,0.37998]
[1729218137995,41.5916,2632.8,2632.2,0.4087]
[1729218138204,1.17153,2632.8,2632.5,0.37995]
[1729218138393,0.37993,2632.7,2632.4,0.37996]
[1729218138896,0.7916,2632.8,2632.2,0.4087]
[1729218139097,0.37993,2632.7,2632.4,0.37997]
[1729218139299,0.7916,2632.8,2632.4,0.37997]
[1729218139603,0.37994,2632.7,2632.5,0.37996]
[1729218140103,0.37994,2632.6,2632.4,0.37997]
[1729218140401,3.2078,2632.6,2632.2,0.4087]
[1729218140594,6.1778,2632.3,2631.3,6.1778]
[1729218140795,6.1778,2632.3,2631.6,0.404]
[1729218140796,0.38006,2631.8,2631.6,0.404]
[1729218141194,0.38007,2631.8,2631.6,0.404]
[1729218141394,3.35005,2631.9,2631.6,0.78409]
[1729218141697,3.35005,2631.9,2631.6,0.404]
[1729218141698,0.38007,2631.8,2631.6,0.404]
[1729218142493,2.97,2631.9,2631.6,0.404]
[1729218142695,0.38007,2631.8,2631.6,0.404]
[1729218143406,0.38006,2631.8,2631.6,0.404]
[1729218143598,3.35005,2631.9,2631.6,0.404]
[1729218143799,3.35005,2631.9,2631.6,0.78409]
[1729218144611,0.38006,2631.8,2631.6,0.404]
[1729218145706,2.97,2631.9,2631.6,0.404]
[1729218145899,0.38007,2631.8,2631.6,0.404]
[1729218146094,3.35005,2631.9,2631.6,0.78408]
[1729218146309,3.2078,2632.0,2631.7,0.38007]
[1729218146510,3.2078,2632.0,2631.6,0.404]
[1729218146711,3.2078,2632.0,2631.8,0.38005]
[1729218146899,3.2078,2632.0,2631.6,0.404]
[1729218147103,44.5858,2632.2,2631.6,0.404]
[1729218147299,44.5858,2632.2,2631.7,2.97]
[1729218147300,41.6158,2632.2,2631.7,2.97]
[1729218147504,0.428,2632.2,2632.1,0.38002]
[1729218148509,0.80866,2632.5,2632.3,0.37998]
[1729218148698,3.2078,2632.7,2631.8,3.372]
[1729218148901,3.35,2632.3,2632.0,0.38002]
[1729218149300,0.38,2632.3,2631.8,0.402]
[1729218149501,0.37998,2632.4,2632.0,0.38002]
[1729218149803,41.629,2632.5,2631.8,0.402]
[1729218150311,0.37999,2632.3,2632.0,0.38002]
[1729218150811,2.97,2632.3,2631.8,0.402]
[1729218151109,0.38007,2631.7,2631.5,0.3987]
[1729218151302,0.38007,2631.7,2631.4,0.38011]
[1729218151503,0.38007,2631.7,2631.3,0.38012]
[1729218152018,0.38007,2631.7,2631.4,0.38011]
[1729218152315,0.38008,2631.7,2631.4,0.38011]
[1729218152512,1.19816,2631.8,2631.5,0.3801]
[1729218152903,0.38007,2631.7,2631.4,0.3801]
[1729218153210,1.19816,2631.8,2631.3,0.38013]
[1729218153413,0.8181,2631.8,2631.2,0.817]
[1729218153615,1.19816,2631.8,2631.5,0.38009]
[1729218154507,0.8181,2631.8,2631.2,0.817]
[1729218154709,1.19816,2631.8,2631.2,0.817]
[1729218154905,1.19816,2631.8,2631.5,0.38009]
[1729218155404,0.8181,2631.8,2631.6,0.38008]
[1729218156511,0.4247,2631.8,2631.7,0.38007]
[1729218156914,0.4247,2631.8,2631.6,0.38008]
[1729218157303,0.4247,2631.8,2631.4,3.2078]
[1729218157498,0.4247,2631.8,2631.6,0.38008]
[1729218157906,0.4247,2631.8,2631.2,6.9948]
[1729218159109,0.80476,2631.8,2631.5,0.38009]
[1729218159712,0.4247,2631.8,2631.2,6.9948]
[1729218159918,0.4247,2631.8,2631.7,0.38007]
[1729218160216,3.2078,2631.9,2631.8,0.38006]
[1729218160414,0.77771,2632.2,2632.1,0.38002]
[1729218160415,0.3977,2632.2,2632.1,0.38002]
[1729218161510,0.3977,2632.2,2631.9,0.8227]
[1729218161713,0.3977,2632.2,2632.1,0.38002]
[1729218164919,3.58777,2632.5,2632.2,0.37999]
[1729218165320,0.37998,2632.4,2632.2,0.37999]
[1729218165517,0.37998,2632.4,2632.0,0.4049]
[1729218165816,3.58776,2632.5,2632.3,0.37998]
[1729218166020,3.2078,2632.5,2632.4,0.37997]
[1729218166514,7.0062,2632.5,2632.4,0.37997]
[1729218167508,3.7984,2632.5,2632.4,0.37997]
[1729218167710,3.2078,2632.6,2632.0,0.4049]
[1729218167914,3.2078,2632.6,2632.5,0.37996]
[1729218168119,0.37996,2632.5,2632.4,0.37996]
[1729218168428,3.2078,2632.6,2632.5,0.37996]
[1729218168429,3.58774,2632.6,2632.5,0.37996]
[1729218168718,3.58774,2632.6,2632.4,0.37997]
[1729218169106,3.58774,2632.6,2632.0,0.4049]
[1729218169314,0.7872,2632.7,2632.0,0.4049]
[1729218169506,0.7872,2632.7,2632.6,0.37994]
[1729218170217,3.2078,2632.9,2632.8,0.37991]
[1729218170409,3.2078,2632.9,2632.7,0.37992]
[1729218170410,3.58771,2632.9,2632.7,0.37992]
[1729218170713,3.2078,2632.9,2632.8,0.37991]
[1729218173121,3.2078,2632.9,2632.5,0.4131]
[1729218173122,3.58771,2632.9,2632.5,0.4131]
[1729218173322,3.58771,2632.9,2632.8,0.37991]
[1729218173625,3.2078,2632.9,2632.8,0.37991]
[1729218175130,0.4189,2633.1,2633.0,0.37989]
[1729218177912,0.79084,2633.3,2633.1,0.37986]
[1729218178313,0.411,2633.3,2633.2,0.37986]
[1729218178521,3.34984,2633.3,2633.1,0.37986]
[1729218178719,6.1778,2633.3,2632.5,3.2078]
[1729218179025,2.97,2632.9,2632.1,1.2102]
[1729218179223,0.8395,2632.8,2632.1,1.2102]
[1729218179420,0.37996,2632.5,2632.3,0.37999]
[1729218179719,3.34995,2632.6,2632.1,1.2102]
[1729218179915,0.414,2632.7,2632.1,1.2102]
[1729218180223,41.59394,2632.7,2632.4,0.37997]
[1729218180422,40.8,2632.7,2632.5,0.37995]
[1729218180626,40.8,2632.7,2632.6,0.4094]
[1729218180919,41.17993,2632.7,2632.4,0.37997]
[1729218181127,0.37995,2632.6,2632.3,0.78937]
[1729218181315,40.8,2632.7,2632.3,0.4094]
[1729218181622,0.3972,2632.6,2632.3,0.4094]
[1729218181824,0.4218,2632.8,2632.6,0.37994]
[1729218182024,0.4218,2632.8,2632.3,0.4094]
[1729218182025,3.2078,2633.0,2632.9,0.3799]
[1729218182327,3.2078,2633.0,2632.4,3.91994]
[1729218182328,40.8,2633.0,2632.8,0.37991]
[1729218182624,40.8,2633.0,2632.3,1.5574]
[1729218182829,40.8,2633.0,2632.8,0.3799]
[1729218184119,41.17989,2633.0,2632.7,0.37993]
[1729218184821,0.3912,2632.9,2632.6,0.7865]
[1729218185017,0.3912,2632.9,2632.8,0.37991]
[1729218185223,0.3912,2632.9,2632.3,0.4094]
[1729218185427,0.8128,2632.9,2632.3,0.8166]
[1729218185633,1.19271,2632.9,2632.6,0.37993]
[1729218185818,0.37992,2632.8,2632.3,0.8166]
[1729218186017,0.8128,2632.9,2632.6,0.37994]
[1729218186218,0.3799,2632.9,2632.3,0.8166]
[1729218186426,0.3799,2632.9,2632.6,0.37993]
[1729218186928,43.77,2633.0,2632.3,0.8166]
[1729218187124,0.3799,2632.9,2632.6,0.37994]
[1729218187625,0.37992,2632.8,2632.6,0.37994]
[1729218187929,0.37992,2632.8,2632.5,0.37996]
[1729218188123,0.3988,2632.7,2632.5,0.37996]
[1729218188516,0.3988,2632.7,2632.3,0.8166]
[1729218188721,0.3988,2632.7,2632.6,0.37994]
[1729218189423,0.3988,2632.7,2632.3,0.8166]
[1729218189622,0.37995,2632.6,2632.3,0.8166]
[1729218189828,0.37998,2632.4,2632.1,0.78811]
[1729218190022,3.3738,2632.5,2632.1,0.38001]
[1729218190228,0.37999,2632.3,2632.1,0.38001]
[1729218190723,3.3738,2632.5,2632.0,0.3973]
[1729218190929,0.4237,2632.2,2632.1,0.38001]
[1729218191635,0.4237,2632.2,2632.0,0.77732]
[1729218192024,0.4237,2632.2,2632.1,0.38002]
[1729218193429,0.37998,2632.4,2632.1,0.38002]
[1729218193733,0.78998,2632.4,2632.1,0.38002]
[1729218193924,0.78998,2632.4,2632.0,0.3973]
[1729218194129,0.78998,2632.4,2632.1,0.38]
[1729218194421,0.37999,2632.3,2632.1,0.38]
[1729218194825,0.78998,2632.4,2632.1,0.38]
[1729218195227,0.78998,2632.4,2632.2,0.38]
[1729218195834,0.37999,2632.3,2632.1,0.38001]
[1729218196024,0.41,2632.4,2632.0,0.3973]
[1729218196025,0.38002,2632.1,2632.0,0.3973]
[1729218196224,0.41,2632.4,2631.9,3.2078]
[1729218196429,0.38,2632.3,2632.0,0.38002]
[1729218196632,0.41,2632.4,2631.9,3.58784]
[1729218196832,0.38,2632.3,2632.0,0.38002]
[1729218197127,0.41,2632.4,2631.9,3.58783]
[1729218197331,0.38,2632.3,2632.0,0.38002]
[1729218197934,0.38,2632.3,2632.0,3.58782]
[1729218198131,0.41,2632.4,2632.0,3.58782]
[1729218198337,0.37999,2632.3,2632.0,3.58782]
[1729218199232,0.37999,2632.3,2632.0,0.38002]
[1729218199421,0.41,2632.4,2632.0,3.2078]
[1729218199626,0.37999,2632.3,2632.1,0.38001]
[1729218199831,0.37999,2632.3,2632.0,3.58782]
[1729218200030,0.38,2632.3,2632.0,3.2078]
[1729218200232,0.41,2632.4,2632.1,0.38001]
[1729218200426,0.37999,2632.3,2632.1,0.38001]
[1729218200740,0.78998,2632.4,2632.1,0.38001]
[1729218201138,0.78998,2632.4,2632.1,0.38]
[1729218201440,0.41,2632.4,2632.3,0.37999]
[1729218202636,0.78997,2632.4,2632.3,0.37999]
[1729218202942,0.41,2632.4,2632.3,0.37999]
[1729218207340,3.2078,2632.6,2632.2,0.8127]
[1729218207542,3.2078,2632.6,2632.5,0.37996]
[1729218209540,3.2078,2632.6,2632.2,0.8127]
[1729218209844,3.2078,2632.3,2631.7,3.2078]
[1729218210038,3.3847,2632.2,2631.7,3.6119]
[1729218210238,0.38006,2631.9,2631.7,0.4041]
[1729218210433,3.3847,2632.2,2631.7,0.4041]
[1729218210740,3.35005,2631.9,2631.7,0.4041]
[1729218210943,40.8,2631.8,2631.7,0.4041]
[1729218211150,2.97,2631.9,2631.6,0.38008]